fUSD/lending_fUSD_20251212
["ID","MTS","AMOUNT","RATE_DAILY","PERIOD"]
[398345114,1765538129027,-865.46,0.00041643,30]
[398345115,1765538129036,-1483.56,0.00041643,30]
[398345116,1765538129045,-500.0,0.00041643,30]
[398345117,1765538129054,-2056.86,0.00041643,30]
[398345118,1765538129064,-598.84,0.00041643,30]
[398345119,1765538129073,-500.0,0.00041643,30]
[398345120,1765538129082,-500.0,0.00041643,30]
[398345121,1765538129092,-500.0,0.00041643,30]
[398345122,1765538129101,-500.0,0.00041643,30]
[398345123,1765538129111,-500.0,0.00041643,30]
[398345124,1765538129121,-2287.8,0.00041643,30]
[398345125,1765538129130,-500.0,0.00041643,30]
[398345126,1765538129139,-500.0,0.00041643,30]
[398345127,1765538129149,-555.94,0.00041643,30]
[398345128,1765538129158,-542.53924235,0.00041643,30]
[398345129,1765538129168,-868.9,0.00041643,30]
[398345130,1765538129183,-671.73,0.00041643,30]
[398345131,1765538129193,-500.0,0.00041643,30]
[398345132,1765538129203,-2439.55,0.00041643,30]
[398345133,1765538129212,-2828.46,0.00041643,120]
[398345134,1765538129221,-3289.05,0.00041643,30]
[398345135,1765538129230,-5959.38536385,0.00041643,30]
[398345136,1765538129239,-1876.03,0.00041643,30]
[398345137,1765538129248,-533.12000001,0.00041643,30]
[398345138,1765538129257,-932.972515,0.00041643,30]
[398345139,1765538129266,-168.15043,0.00041643,30]
[398345140,1765538129275,-1953.93417,0.00041643,30]
[398345141,1765538129284,-1767.482813,0.00041643,30]
[398345142,1765538129293,-171.577909,0.00041643,30]
[398345143,1765538129302,-1310.696547,0.00041643,30]
[398345144,1765538129312,-1000.0,0.00041643,120]
[398345145,1765538129321,-1014.43,0.00041643,30]
[398345146,1765538129331,-500.0,0.00041643,30]
[398345147,1765538129340,-1000.0,0.00041643,30]
[398345148,1765538129349,-352.09,0.00041643,2]
[398345149,1765538129358,-645.54,0.00041643,30]
[398345150,1765538129368,-500.0,0.00041643,30]
[398345151,1765538129377,-523.99,0.00041643,120]
[398345152,1765538129387,-507.80802807,0.00041643,2]
[398345153,1765538129396,-1994.45,0.00041643,30]
[398345154,1765538129406,-2057.12,0.00041643,30]
[398345155,1765538129415,-346.79207641,0.00041643,2]
[398345156,1765538129425,-207.09774002,0.00041644,10]
[398345157,1765538129434,-1000.0,0.00041644,10]
[398345158,1765538129443,-531.0,0.00041644,120]
[398345159,1765538129452,-1000.0,0.00041644,2]
[398345160,1765538129462,-500.0,0.00041644,60]
[398345161,1765538129471,-267.06225858,0.00041757,60]
[398345162,1765538129480,-1000.0,0.00041768,2]
[398345163,1765538129490,-300.0,0.0004177,3]
[398345164,1765538129499,-400.0,0.0004177,3]
[398345165,1765538129508,-531.0,0.00041781,120]
[398345166,1765538129518,-1000.0,0.00041781,2]
[398345167,1765538129527,-1451.00030052,0.000418,120]
[398345168,1765538129537,-1094.5,0.000418,120]
[398345169,1765538129546,-1330.0,0.000418,30]
[398345170,1765538129555,-2217.26054437,0.000419,4]
[398345171,1765538129564,-2000.0,0.000419,120]
[398345172,1765538129573,-2960.52,0.000419,14]
[398345173,1765538129582,-245.31,0.000419,14]
[398345174,1765538129592,-151.0,0.000419,7]
[398345175,1765538129601,-234.0,0.000419,22]
[398345176,1765538129610,-2000.0,0.00041904,120]
[398345177,1765538129619,-249.019446,0.00041904,120]
[398345178,1765538129628,-500.0,0.00041917,30]
[398345179,1765538129637,-500.0,0.00041917,30]
[398345180,1765538129647,-500.0,0.00041917,30]
[398345181,1765538129655,-500.0,0.00041917,30]
[398345182,1765538129665,-1824.08,0.00041917,30]
[398345183,1765538129674,-651.26,0.00041917,30]
[398345184,1765538129683,-500.0,0.00041917,30]
[398345185,1765538129693,-500.0,0.00041917,30]
[398345186,1765538129702,-768.58,0.00041917,30]
[398345187,1765538129711,-500.0,0.00041917,30]
[398345188,1765538129722,-604.69,0.00041917,30]
[398345189,1765538129731,-500.0,0.00041917,30]
[398345190,1765538129740,-1703.32,0.00041917,30]
[398345191,1765538129749,-601.55,0.00041917,7]
[398345192,1765538129758,-662.42,0.00041917,30]
[398345193,1765538129767,-693.68,0.00041917,30]
[398345194,1765538129776,-555.00480304,0.00041917,30]
[398345195,1765538129785,-500.0,0.00041917,30]
[398345196,1765538129795,-500.0,0.00041917,30]
[398345197,1765538129804,-500.0,0.00041917,30]
[398345198,1765538129813,-1436.54,0.00041917,30]
[398345199,1765538129823,-500.0,0.00041917,30]
[398345200,1765538129832,-500.0,0.00041917,30]
[398345201,1765538129841,-500.0,0.00041917,30]
[398345202,1765538129851,-500.0,0.00041917,30]
[398345203,1765538129860,-500.0,0.00041917,30]
[398345204,1765538129870,-500.0,0.00041917,30]
[398345205,1765538129880,-500.0,0.00041917,30]
[398345206,1765538129893,-698.57,0.00041917,30]
[398345207,1765538129902,-789.19,0.00041917,30]
[398345208,1765538129911,-500.0,0.00041917,30]
[398345209,1765538129920,-627.23,0.00041917,30]
[398345210,1765538129930,-500.0,0.00041917,30]
[398345211,1765538129939,-772.34,0.00041917,30]
[398345212,1765538129949,-500.0,0.00041917,30]
[398345213,1765538129958,-500.0,0.00041917,30]
[398345214,1765538129968,-741.68,0.00041917,30]
[398345215,1765538129979,-545.86,0.00041917,30]
[398345216,1765538129988,-625.45,0.00041917,30]
[398345217,1765538129998,-646.79,0.00041917,30]
[398345218,1765538130007,-646.65,0.00041917,30]
[398345219,1765538130017,-794.95,0.00041917,30]
[398345220,1765538130026,-500.0,0.00041917,30]
[398345221,1765538130036,-687.17,0.00041917,30]
[398345222,1765538130045,-500.0,0.00041917,30]
[398345223,1765538130054,-885.09,0.00041917,30]
[398345224,1765538130063,-1097.95,0.00041917,30]
[398345225,1765538130072,-500.0,0.00041917,30]
[398345226,1765538130082,-500.0,0.00041917,30]
[398345227,1765538130091,-837.55,0.00041917,30]
[398345228,1765538130106,-540.22,0.00041917,30]
[398345229,1765538130116,-519.63,0.00041917,30]
[398345230,1765538130126,-1294.43,0.00041917,30]
[398345231,1765538130136,-500.0,0.00041917,30]
[398345232,1765538130146,-500.0,0.00041917,30]
[398345233,1765538130156,-1011.88,0.00041917,30]
[398345234,1765538130166,-500.0,0.00041917,30]
[398345235,1765538130175,-500.0,0.00041917,30]
[398345236,1765538130185,-1196.03,0.00041917,30]
[398345237,1765538130195,-617.95,0.00041917,30]
[398345238,1765538130205,-548.66,0.00041917,30]
[398345239,1765538130214,-500.0,0.00041917,30]
[398345240,1765538130224,-500.0,0.00041917,30]
[398345241,1765538130233,-678.18,0.00041917,30]
[398345243,1765538130242,-500.0,0.00041917,30]
[398345244,1765538130256,-500.0,0.00041917,30]
[398345245,1765538130265,-585.26,0.00041917,30]
[398345246,1765538130274,-500.0,0.00041917,30]
[398345247,1765538130283,-672.38,0.00041917,30]
[398345248,1765538130293,-542.28,0.00041917,30]
[398345249,1765538130302,-500.0,0.00041917,30]
[398345250,1765538130311,-755.36,0.00041917,30]
[398345251,1765538130320,-1228.59,0.00041917,30]
[398345252,1765538130330,-1439.79,0.00041917,30]
[398345253,1765538130339,-864.07,0.00041917,30]
[398345254,1765538130349,-573.95,0.00041917,30]
[398345255,1765538130358,-533.54,0.00041917,30]
[398345256,1765538130367,-938.76,0.00041917,30]
[398345257,1765538130379,-500.0,0.00041917,30]
[398345258,1765538130397,-500.0,0.00041917,30]
[398345259,1765538130409,-620.08,0.00041917,30]
[398345260,1765538130418,-775.57,0.00041917,30]
[398345261,1765538130428,-500.0,0.00041917,30]
[398345262,1765538130438,-501.55,0.00041917,30]
[398345263,1765538130448,-500.0,0.00041917,14]
[398345264,1765538130459,-755.67,0.00041917,30]
[398345265,1765538130470,-503.01,0.00041917,30]
[398345266,1765538130481,-500.0,0.00041917,30]
[398345267,1765538130491,-595.47,0.00041917,30]
[398345268,1765538130500,-517.36,0.00041917,30]
[398345269,1765538130510,-500.0,0.00041917,30]
[398345270,1765538130520,-500.0,0.00041917,30]
[398345271,1765538130530,-500.0,0.00041917,30]
[398345272,1765538130539,-1197.34,0.00041917,30]
[398345273,1765538130548,-609.14,0.00041917,30]
[398345274,1765538130558,-897.9,0.00041917,30]
[398345275,1765538130567,-702.09,0.00041917,30]
[398345276,1765538130577,-663.82,0.00041917,30]
[398345277,1765538130587,-500.0,0.00041917,30]
[398345278,1765538130597,-500.0,0.00041917,30]
[398345279,1765538130606,-500.0,0.00041917,30]
[398345280,1765538130616,-740.86,0.00041917,30]
[398345281,1765538130625,-500.0,0.00041917,30]
[398345282,1765538130640,-1430.91,0.00041917,30]
[398345284,1765538130650,-1100.71,0.00041917,11]
[398345285,1765538130659,-563.18,0.00041917,30]
[398345286,1765538130668,-1144.71,0.00041917,30]
[398345287,1765538130678,-758.29,0.00041917,30]
[398345288,1765538130688,-667.94,0.00041917,30]
[398345289,1765538130697,-500.0,0.00041917,30]
[398345290,1765538130707,-1846.03,0.00041917,30]
[398345291,1765538130716,-500.0,0.00041917,30]
[398345292,1765538130726,-500.0,0.00041917,30]
[398345293,1765538130735,-500.0,0.00041917,30]
[398345294,1765538130745,-676.5,0.00041917,30]
[398345295,1765538130754,-500.0,0.00041917,30]
[398345296,1765538130763,-732.08,0.00041917,30]
[398345297,1765538130773,-724.94,0.00041917,30]
[398345298,1765538130783,-643.49,0.00041917,30]
[398345299,1765538130792,-1213.64,0.00041917,30]
[398345300,1765538130802,-607.07,0.00041917,30]
[398345301,1765538130810,-750.79,0.00041917,30]
[398345302,1765538130820,-1215.39,0.00041917,30]
[398345303,1765538130829,-565.7,0.00041917,30]
[398345304,1765538130839,-500.0,0.00041917,30]
[398345305,1765538130848,-500.0,0.00041917,30]
[398345306,1765538130857,-461.64253911,0.00041917,30]
[398345307,1765538130867,-848.58,0.00041917,30]
[398345308,1765538130877,-529.41142086,0.00041917,30]
[398345309,1765538130890,-500.0,0.00041917,30]
[398345310,1765538130899,-500.0,0.00041917,30]
[398345311,1765538130908,-753.21,0.00041917,30]
[398345312,1765538130918,-500.0,0.00041917,30]
[398345313,1765538130930,-500.0,0.00041917,30]
[398345314,1765538130941,-500.0,0.00041917,30]
[398345315,1765538130951,-552.91,0.00041917,30]
[398345316,1765538130962,-795.68,0.00041917,30]
[398345317,1765538130972,-500.0,0.00041917,30]
[398345318,1765538130982,-692.67,0.00041917,30]
[398345319,1765538130992,-745.98,0.00041917,30]
[398345320,1765538131002,-500.0,0.00041917,30]
[398345321,1765538131011,-500.0,0.00041917,30]
[398345322,1765538131026,-500.0,0.00041917,30]
[398345323,1765538131036,-714.2,0.00041917,30]
[398345324,1765538131046,-500.0,0.00041917,30]
[398345325,1765538131056,-500.0,0.00041917,30]
[398345326,1765538131066,-500.0,0.00041917,30]
[398345327,1765538131076,-990.89,0.00041917,30]
[398345328,1765538131085,-586.25093068,0.00041917,30]
[398345329,1765538131095,-1141.33,0.00041917,30]
[398345330,1765538131104,-500.0,0.00041917,30]
[398345331,1765538131114,-736.93,0.00041917,30]
[398345332,1765538131123,-500.0,0.00041917,30]
[398345333,1765538131133,-500.0,0.00041917,30]
[398345334,1765538131143,-1026.69,0.00041917,30]
[398345335,1765538131152,-866.2,0.00041917,30]
[398345336,1765538131162,-500.0,0.00041917,30]
[398345337,1765538131171,-500.0,0.00041917,30]
[398345338,1765538131181,-510.19,0.00041917,30]
[398345339,1765538131192,-709.46,0.00041917,30]
[398345340,1765538131201,-755.64,0.00041917,30]
[398345341,1765538131211,-1337.95,0.00041917,30]
[398345342,1765538131220,-3627.22,0.00041917,30]
[398345343,1765538131230,-750.49,0.00041917,30]
[398345344,1765538131239,-500.0,0.00041917,30]
[398345345,1765538131248,-856.96,0.00041917,30]
[398345346,1765538131258,-1759.45,0.00041917,30]
[398345347,1765538131267,-500.0,0.00041917,30]
[398345348,1765538131276,-524.23,0.00041917,30]
[398345349,1765538131286,-500.0,0.00041917,30]
[398345350,1765538131296,-500.54,0.00041917,30]
[398345351,1765538131306,-1039.78,0.00041917,30]
[398345352,1765538131315,-730.61,0.00041917,30]
[398345353,1765538131324,-500.0,0.00041917,30]
[398345354,1765538131334,-615.84,0.00041917,30]
[398345355,1765538131343,-647.65,0.00041917,30]
[398345356,1765538131353,-906.8,0.00041917,30]
[398345357,1765538131363,-1472.62,0.00041917,30]
[398345358,1765538131372,-551.86,0.00041917,30]
[398345359,1765538131387,-500.0,0.00041917,30]
[398345360,1765538131398,-500.0,0.00041917,30]
[398345361,1765538131408,-500.0,0.00041917,30]
[398345362,1765538131418,-500.0,0.00041917,30]
[398345363,1765538131427,-2737.4,0.00041917,30]
[398345364,1765538131437,-1372.17,0.00041917,30]
[398345365,1765538131446,-500.0,0.00041917,30]
[398345366,1765538131456,-609.5167002,0.00041917,30]
[398345367,1765538131466,-605.97005325,0.00041917,30]
[398345368,1765538131476,-500.0,0.00041917,30]
[398345369,1765538131485,-171.79347446,0.00041917,30]
[398345370,1765538131495,-500.0,0.00041917,30]
[398345371,1765538131505,-2430.46,0.00041917,30]
[398345372,1765538131515,-500.0,0.00041917,30]
[398345373,1765538131524,-500.0,0.00041917,30]
[398345374,1765538131533,-500.0,0.00041917,30]
[398345375,1765538131543,-1139.75,0.00041917,30]
[398345376,1765538131553,-1401.35,0.00041917,30]
[398345377,1765538131562,-800.13,0.00041917,30]
[398345378,1765538131572,-1445.96,0.00041917,30]
[398345379,1765538131582,-500.0,0.00041917,30]
[398345380,1765538131591,-918.45,0.00041917,30]
[398345381,1765538131601,-1070.7,0.00041917,30]
[398345382,1765538131610,-500.0,0.00041917,30]
[398345383,1765538131621,-500.0,0.00041917,30]
[398345384,1765538131630,-2437.96,0.00041917,30]
[398345385,1765538131641,-500.0,0.00041917,30]
[398345386,1765538131651,-592.87,0.00041917,30]
[398345387,1765538131661,-500.0,0.00041917,30]
[398345388,1765538131671,-508.2131584,0.00041917,30]
[398345389,1765538131681,-1588.94,0.00041917,30]
[398345390,1765538131691,-537.45,0.00041917,30]
[398345391,1765538131701,-500.0,0.00041917,30]
[398345392,1765538131710,-522.96,0.00041917,30]
[398345393,1765538131720,-500.0,0.00041917,30]
[398345394,1765538131729,-1096.52,0.00041917,30]
[398345395,1765538131739,-500.0,0.00041917,30]
[398345396,1765538131752,-500.0,0.00041917,30]
[398345397,1765538131761,-542.04,0.00041917,30]
[398345398,1765538131772,-637.83,0.00041917,30]
[398345399,1765538131781,-698.44,0.00041917,30]
[398345400,1765538131791,-660.2,0.00041917,30]
[398345401,1765538131800,-500.0,0.00041917,30]
[398345402,1765538131809,-500.0,0.00041917,30]
[398345403,1765538131819,-500.0,0.00041917,30]
[398345404,1765538131828,-1065.82,0.00041917,30]
[398345405,1765538131838,-500.0,0.00041917,30]
[398345406,1765538131847,-500.0,0.00041917,30]
[398345407,1765538131857,-2027.17,0.00041917,30]
[398345408,1765538131866,-663.04,0.00041917,30]
[398345409,1765538131876,-500.0,0.00041917,30]
[398345410,1765538131888,-500.0,0.00041917,30]
[398345411,1765538131898,-500.0,0.00041917,30]
[398345412,1765538131907,-500.0,0.00041917,30]
[398345413,1765538131917,-512.73086149,0.00041917,30]
[398345414,1765538131926,-500.0,0.00041917,30]
[398345415,1765538131936,-1526.42,0.00041917,30]
[398345416,1765538131948,-1034.23,0.00041917,30]
[398345417,1765538131958,-500.0,0.00041917,30]
[398345418,1765538131968,-500.0,0.00041917,30]
[398345419,1765538131977,-604.96,0.00041917,30]
[398345420,1765538131987,-274.17907481,0.00041917,30]
[398345421,1765538131997,-352.39415178,0.00041917,30]
[398345422,1765538132007,-500.0,0.00041917,30]
[398345423,1765538132017,-526.63,0.00041917,30]
[398345424,1765538132027,-500.0,0.00041917,30]
[398345425,1765538132037,-1577.6,0.00041917,30]
[398345426,1765538132047,-500.0,0.00041917,30]
[398345427,1765538132058,-500.0,0.00041917,30]
[398345428,1765538132068,-500.0,0.00041917,30]
[398345429,1765538132370,-500.0,0.00041917,30]
[398345430,1765538132383,-1132.8,0.00041917,30]
[398345431,1765538132392,-705.52,0.00041917,30]
[398345432,1765538132403,-570.07,0.00041917,30]
[398345433,1765538132412,-961.9,0.00041917,30]
[398345434,1765538132421,-735.82,0.00041917,30]
[398345435,1765538132431,-749.42,0.00041917,30]
[398345436,1765538132440,-1191.88,0.00041917,30]
[398345437,1765538132450,-522.47,0.00041917,30]
[398345438,1765538132459,-4298.84,0.00041917,30]
[398345439,1765538132469,-974.16,0.00041917,30]
[398345440,1765538132479,-1095.96,0.00041917,30]
[398345441,1765538132488,-226.04560082,0.00041917,30]
[398345442,1765538132498,-938.71,0.00041917,30]
[398345443,1765538132507,-1397.58,0.00041917,30]
[398345444,1765538132518,-500.0,0.00041917,30]
[398345445,1765538132527,-2368.57,0.00041917,30]
[398345446,1765538132537,-508.91,0.00041917,30]
[398345447,1765538132546,-1181.83,0.00041917,30]
[398345448,1765538132556,-2107.36,0.00041917,30]
[398345449,1765538132565,-591.32,0.00041917,30]
[398345450,1765538132575,-500.0,0.00041917,30]
[398345451,1765538132585,-1407.05,0.00041917,30]
[398345452,1765538132595,-712.24,0.00041917,30]
[398345453,1765538132604,-500.0,0.00041917,30]
[398345454,1765538132614,-500.0,0.00041917,30]
[398345455,1765538132624,-1000.77,0.00041917,30]
[398345456,1765538132634,-500.0,0.00041917,30]
[398345457,1765538132643,-578.91,0.00041917,30]
[398345458,1765538132654,-1480.01,0.00041917,30]
[398345459,1765538132664,-796.45,0.00041917,30]
[398345460,1765538132673,-1121.9,0.00041917,30]
[398345461,1765538132683,-538.64,0.00041917,30]
[398345462,1765538132692,-875.09,0.00041917,30]
[398345463,1765538132702,-500.0,0.00041917,30]
[398345464,1765538132711,-1342.46,0.00041917,30]
[398345465,1765538132721,-500.0,0.00041917,30]
[398345466,1765538132731,-382.19297221,0.00041917,30]
[398345467,1765538132741,-500.0,0.00041917,30]
[398345468,1765538132750,-500.0,0.00041917,30]
[398345469,1765538132760,-551.7,0.00041917,30]
[398345470,1765538132769,-500.0,0.00041917,30]
[398345471,1765538132779,-500.0,0.00041917,30]
[398345472,1765538132793,-516.69089202,0.00041917,30]
[398345473,1765538132803,-500.0,0.00041917,30]
[398345474,1765538132814,-500.0,0.00041917,30]
[398345475,1765538132824,-891.01,0.00041917,30]
[398345476,1765538132834,-1631.76,0.00041917,30]
[398345477,1765538132844,-500.0,0.00041917,30]
[398345478,1765538132854,-511.07,0.00041917,30]
[398345479,1765538132864,-935.63,0.00041917,30]
[398345480,1765538132874,-500.0,0.00041917,30]
[398345481,1765538132886,-1213.86,0.00041917,30]
[398345482,1765538132896,-713.52,0.00041917,30]
[398345483,1765538132907,-500.0,0.00041917,30]
[398345484,1765538132917,-999.59,0.00041917,30]
[398345485,1765538132929,-762.67,0.00041917,30]
[398345486,1765538132939,-500.0,0.00041917,30]
[398345487,1765538132949,-922.65,0.00041917,30]
[398345488,1765538132962,-1139.73,0.00041917,30]
[398345489,1765538132972,-500.0,0.00041917,30]
[398345490,1765538132983,-960.26,0.00041917,30]
[398345491,1765538132994,-921.07,0.00041917,30]
[398345492,1765538133004,-824.08,0.00041917,30]
[398345493,1765538133015,-500.0,0.00041917,30]
[398345494,1765538133025,-1836.88,0.00041917,30]
[398345495,1765538133036,-500.0,0.00041917,30]
[398345496,1765538133048,-500.0,0.00041917,30]
[398345497,1765538133059,-807.06,0.00041917,30]
[398345498,1765538133070,-1304.95,0.00041917,30]
[398345499,1765538133080,-1005.91,0.00041917,30]
[398345500,1765538133090,-515.93119589,0.00041917,30]
[398345501,1765538133101,-1051.07,0.00041917,30]
[398345502,1765538133111,-500.0,0.00041917,30]
[398345503,1765538133122,-500.0,0.00041917,30]
[398345504,1765538133132,-929.4,0.00041917,30]
[398345505,1765538133143,-500.0,0.00041917,30]
[398345506,1765538133153,-621.09,0.00041917,30]
[398345507,1765538133164,-610.14969308,0.00041917,30]
[398345508,1765538133176,-500.0,0.00041917,30]
[398345509,1765538133187,-1874.12,0.00041917,30]
[398345510,1765538133199,-500.0,0.00041917,30]
[398345511,1765538133209,-521.95,0.00041917,30]
[398345512,1765538133220,-500.0,0.00041917,25]
[398345513,1765538133231,-500.0,0.00041917,30]
[398345514,1765538133241,-578.01,0.00041917,30]
[398345515,1765538133252,-667.26,0.00041917,7]
[398345516,1765538133262,-701.87,0.00041917,30]
[398345517,1765538133272,-532.36,0.00041917,30]
[398345518,1765538133282,-500.0,0.00041917,30]
[398345519,1765538133292,-890.33,0.00041917,30]
[398345520,1765538133302,-619.34,0.00041917,30]
[398345521,1765538133312,-500.0,0.00041917,30]
[398345522,1765538133322,-666.66,0.00041917,30]
[398345523,1765538133332,-679.95,0.00041917,30]
[398345524,1765538133342,-846.97,0.00041917,30]
[398345525,1765538133352,-421.62265735,0.00041917,30]
[398345526,1765538133362,-1622.6,0.00041917,30]
[398345527,1765538133372,-1634.93,0.00041917,30]
[398345528,1765538133382,-1372.09,0.00041917,30]
[398345529,1765538133392,-867.67,0.00041917,30]
[398345530,1765538133402,-500.0,0.00041917,30]
[398345531,1765538133412,-630.63,0.00041917,30]
[398345532,1765538133421,-500.0,0.00041917,30]
[398345533,1765538133431,-1368.81,0.00041917,30]
[398345534,1765538133441,-500.0,0.00041917,30]
[398345535,1765538133451,-500.0,0.00041917,30]
[398345536,1765538133461,-500.0,0.00041917,30]
[398345537,1765538133471,-290.2285405,0.00041917,30]
[398345538,1765538133481,-2251.55,0.00041917,30]
[398345539,1765538133491,-1877.84,0.00041917,30]
[398345540,1765538133500,-626.64,0.00041917,30]
[398345541,1765538133510,-554.25,0.00041917,30]
[398345542,1765538133520,-500.0,0.00041917,30]
[398345543,1765538133530,-500.0,0.00041917,30]
[398345544,1765538133539,-1066.72,0.00041917,30]
[398345545,1765538133549,-1191.7,0.00041917,30]
[398345546,1765538133559,-620.95,0.00041917,30]
[398345547,1765538133568,-552.1,0.00041917,30]
[398345548,1765538133578,-500.0,0.00041917,30]
[398345549,1765538133588,-2254.72,0.00041917,30]
[398345550,1765538133597,-1109.61,0.00041917,30]
[398345551,1765538133608,-500.0,0.00041917,30]
[398345552,1765538133617,-1451.06,0.00041917,30]
[398345553,1765538133628,-500.0,0.00041917,30]
[398345554,1765538133637,-524.1,0.00041917,30]
[398345555,1765538133648,-535.99,0.00041917,30]
[398345556,1765538133657,-1647.96,0.00041917,30]
[398345557,1765538133667,-500.0,0.00041917,30]
[398345558,1765538133676,-500.0,0.00041917,30]
[398345559,1765538133686,-1607.35,0.00041917,30]
[398345560,1765538133695,-500.0,0.00041917,30]
[398345561,1765538133705,-500.0,0.00041917,30]
[398345562,1765538133715,-1890.33,0.00041917,30]
[398345563,1765538133725,-702.35,0.00041917,30]
[398345564,1765538133735,-1448.32,0.00041917,30]
[398345565,1765538133744,-1632.19,0.00041917,30]
[398345566,1765538133754,-876.83,0.00041917,30]
[398345567,1765538133764,-832.79,0.00041917,30]
[398345568,1765538133774,-623.5,0.00041917,30]
[398345569,1765538133784,-2761.6,0.00041917,30]
[398345570,1765538133794,-604.56,0.00041917,30]
[398345571,1765538133804,-769.61,0.00041917,30]
[398345572,1765538133814,-1014.43,0.00041917,30]
[398345573,1765538133823,-500.0,0.00041917,30]
[398345574,1765538133832,-500.0,0.00041917,30]
[398345575,1765538133842,-500.0,0.00041917,30]
[398345576,1765538133851,-977.53,0.00041917,30]
[398345577,1765538133861,-799.32,0.00041917,30]
[398345578,1765538133870,-500.0,0.00041917,30]
[398345579,1765538133879,-1062.18,0.00041917,30]
[398345580,1765538133893,-502.48,0.00041917,30]
[398345581,1765538133903,-882.68,0.00041917,30]
[398345582,1765538133914,-907.2,0.00041917,30]
[398345583,1765538133923,-1677.04,0.00041917,30]
[398345584,1765538133932,-786.93,0.00041917,30]
[398345585,1765538133942,-566.21,0.00041917,30]
[398345586,1765538133951,-1523.05,0.00041917,30]
[398345587,1765538133961,-500.0,0.00041917,30]
[398345588,1765538133971,-623.75,0.00041917,30]
[398345589,1765538133980,-646.21,0.00041917,30]
[398345590,1765538133990,-500.0,0.00041917,30]
[398345591,1765538133999,-850.56,0.00041917,30]
[398345592,1765538134008,-506.59,0.00041917,30]
[398345593,1765538134018,-2457.1,0.00041917,30]
[398345594,1765538134027,-1824.58,0.00041917,30]
[398345595,1765538134038,-593.38,0.00041917,30]
[398345596,1765538134047,-500.0,0.00041917,30]
[398345597,1765538134057,-2498.97,0.00041917,30]
[398345598,1765538134067,-937.73,0.00041917,30]
[398345599,1765538134077,-500.0,0.00041917,30]
[398345600,1765538134087,-7728.61,0.00041917,30]
[398345601,1765538134097,-500.0,0.00041917,30]
[398345602,1765538134107,-500.0,0.00041917,30]
[398345603,1765538134118,-521.3,0.00041917,30]
[398345604,1765538134128,-5162.44,0.00041917,30]
[398345605,1765538134138,-4512.65,0.00041917,30]
[398345606,1765538134148,-2045.54,0.00041917,30]
[398345607,1765538134158,-2044.49,0.00041917,30]
[398345608,1765538134168,-401.7608541,0.00041917,30]
[398345609,1765538134178,-803.09,0.00041917,30]
[398345610,1765538134187,-880.62,0.00041917,30]
[398345611,1765538134197,-1055.54,0.00041917,30]
[398345612,1765538134206,-1170.58,0.00041917,30]
[398345613,1765538134216,-500.0,0.00041917,30]
[398345614,1765538134225,-2563.76,0.00041917,30]
[398345615,1765538134235,-263.72052736,0.00041917,30]